[Event "IIFL Wealth 4th Mumbai GM"]
[Site "Mumbai"]
[Date "2019.01.05"]
[Round "7"]
[White "Deepan Chakkravarthy J."]
[Black "Rajesh, V A V"]
[Result "1/2-1/2"]
[ECO "A48"]
[WhiteElo "2550"]
[BlackElo "2402"]
[Annotator "ChessBase"]
[PlyCount "181"]
[EventDate "2018.12.30"]
[EventType "swiss"]
[EventCountry "IND"]
[SourceTitle "playchess.com"]
[Source "ChessBase"]
[SourceQuality "1"]
[TimeControl "40/5400+30:1800+30"]

1. Nf3 {[%emt 0:00:00]} Nf6 {[%emt 0:00:00]} 2. d4 {[%emt 0:00:05]} g6 {[%emt 0:00:00]} 3. Bf4 {[%emt 0:00:05]} Bg7 {[%emt 0:00:00]} 4. e3 {[%emt 0:00:10]} O-O {[%emt 0:00:37]} 5. Be2 {[%emt 0:00:07]} d6 {[%emt 0:00:51]} 6. h3 {[%emt 0:00:06]} c5 {[%emt 0:01:42]} 7. c3 {[%emt 0:00:07]} Qb6 {[%emt 0:00:41]} 8. Qb3 {[%emt 0:00:10]} Be6 {[%emt 0:03:45]} 9. Qa3 {[%emt 0:06:26]} Nc6 {[%emt 0:00:44]} 10. Nbd2 {[%emt 0:00:09]} Bd5 {[%emt 0:11:18]} 11. O-O {[%emt 0:02:26]} Rfe8 {[%emt 0:02:31]} 12. Nc4 {[%emt 0:18:21]} Bxc4 {[%emt 0:01:13]} 13. Bxc4 {[%emt 0:00:03]} e5 {[%emt 0:00:59]} 14. dxe5 {[%emt 0:00:49]} dxe5 {[%emt 0:01:06]} 15. Bh2 {[%emt 0:00:21]} h6 {[%emt 0:04:51]} 16. Rfd1 {[%emt 0:03:26]} Bf8 {[%emt 0:02:28]} 17. Qa4 {[%emt 0:09:10]} a6 {[%emt 0:02:38]} 18. Qc2 {[%emt 0:04:47]} Kg7 {[%emt 0:03:25]} 19. a4 {[%emt 0:03:23]} Qc7 {[%emt 0:14:05]} 20. e4 {[%emt 0:17:09]} Rad8 {[%emt 0:00:52]} 21. Nd2 {[%emt 0:08:16]} Na5 {[%emt 0:06:56]} 22. b3 {[%emt 0:00:44]} Rd7 {[%emt 0:02:59]} 23. Be2 {[%emt 0:02:18]} Red8 {[%emt 0:00:17]} 24. Nc4 {[%emt 0:03:04]} Rxd1+ {[%emt 0:00:33]} 25. Rxd1 {[%emt 0:00:01]} Rxd1+ {[%emt 0:00:35]} 26. Qxd1 {[%emt 0:00:02]} Nxc4 {[%emt 0:00:11]} 27. Bxc4 {[%emt 0:00:01]} Bd6 {[%emt 0:00:08]} 28. f3 {[%emt 0:03:05]} Qc6 {[%emt 0:01:12]} 29. Kf1 {[%emt 0:00:17]} Bc7 {[%emt 0:00:48]} 30. Qd3 {[%emt 0:00:47]} Bd6 {[%emt 0:03:18]} 31. Bg1 {[%emt 0:01:37]} Qc7 {[%emt 0:01:40]} 32. Be3 {[%emt 0:00:12]} Bf8 {[%emt 0:02:45]} 33. Qd2 {[%emt 0:00:35]} Kh7 {[%emt 0:00:04]} 34. g3 {[%emt 0:02:17]} Ne8 {[%emt 0:02:32]} 35. Qd5 {[%emt 0:02:26]} Kg8 {[%emt 0:00:11]} 36. Kg2 {[%emt 0:00:32]} Nf6 {[%emt 0:00:47]} 37. Qd2 {[%emt 0:00:09]} h5 {[%emt 0:00:40]} 38. Bg5 {[%emt 0:03:05]} Nd7 {[%emt 0:00:22]} 39. a5 {[%emt 0:01:40]} Kg7 {[%emt 0:01:19]} 40. Bh6+ {[%emt 0:00:00]} Kh7 {[%emt 0:00:00]} 41. Bg5 {[%emt 0:07:28]} Kg7 {[%emt 0:01:58]} 42. h4 {[%emt 0:01:49]} Qc6 {[%emt 0:12:58]} 43. Qd5 {[%emt 0:14:26]} Qxd5 {[%emt 0:00:13]} 44. Bxd5 {[%emt 0:00:03]} f6 {[%emt 0:00:19]} 45. Be3 {[%emt 0:08:36]} b5 {[%emt 0:00:06]} 46. axb6 {[%emt 0:03:26]} Nxb6 {[%emt 0:00:04]} 47. Bc6 {[%emt 0:00:12]} a5 {[%emt 0:03:01]} 48. c4 {[%emt 0:02:20]} Bd6 {[%emt 0:03:12]} 49. Bd2 {[%emt 0:00:05]} a4 {[%emt 0:01:29]} 50. Bxa4 {[%emt 0:00:06]} Na8 {[%emt 0:00:22]} 51. Ba5 {[%emt 0:02:08]} Bc7 {[%emt 0:06:02]} 52. b4 {[%emt 0:00:05]} Bb6 {[%emt 0:00:05]} 53. Bc6 {[%emt 0:00:45]} cxb4 {[%emt 0:00:03]} 54. Bxb4 {[%emt 0:00:05]} Nc7 {[%emt 0:00:03]} 55. c5 {[%emt 0:01:42]} Ba7 {[%emt 0:00:02]} 56. Bd5 {[%emt 0:00:57]} Nb5 {[%emt 0:00:59]} 57. c6 {[%emt 0:00:17]} Bb6 {[%emt 0:00:07]} 58. Be7 {[%emt 0:00:54]} Bc7 {[%emt 0:00:29]} 59. Bc5 {[%emt 0:00:11]} Nd4 {[%emt 0:07:46]} 60. Kf2 {[%emt 0:00:02]} f5 {[%emt 0:01:32]} 61. Ke3 {[%emt 0:04:04]} fxe4 {[%emt 0:00:36]} 62. Bxe4 {[%emt 0:01:36]} Nf5+ {[%emt 0:03:13]} 63. Kf2 {[%emt 0:00:07]} Kf6 {[%emt 0:00:26]} 64. Kg2 {[%emt 0:00:07]} Nd4 {[%emt 0:02:34]} 65. Bxd4 {[%emt 0:01:54]} exd4 {[%emt 0:00:06]} 66. f4 {[%emt 0:00:02]} Kf7 {[%emt 0:02:21]} 67. Kf3 {[%emt 0:00:08]} Ba5 {[%emt 0:00:07]} 68. Ke2 {[%emt 0:00:07]} Kf6 {[%emt 0:00:10]} 69. Kd3 {[%emt 0:01:39]} Ke7 {[%emt 0:00:24]} 70. Bxg6 {[%emt 0:00:28]} Be1 {[%emt 0:00:06]} 71. Kxd4 {[%emt 0:00:06]} Kd6 {[%emt 0:02:28]} 72. Be4 {[%emt 0:01:03]} Bxg3 {[%emt 0:00:16]} 73. f5 {[%emt 0:00:26]} Bxh4 {[%emt 0:00:41]} 74. Bf3 {[%emt 0:00:25]} Bf6+ {[%emt 0:00:42]} 75. Ke3 {[%emt 0:00:07]} Bg5+ {[%emt 0:00:52]} 76. Kd4 {[%emt 0:00:13]} Bf6+ {[%emt 0:00:25]} 77. Kc4 {[%emt 0:00:29]} Bd8 {[%emt 0:00:35]} 78. Bg2 {[%emt 0:00:14]} Bf6 {[%emt 0:02:16]} 79. Kb5 {[%emt 0:00:09]} Bd4 {[%emt 0:00:13]} 80. Bf3 {[%emt 0:01:08]} h4 {[%emt 0:00:44]} 81. Bg2 {[%emt 0:00:01]} Be3 {[%emt 0:09:41]} 82. f6 {[%emt 0:00:13]} Bf4 {[%emt 0:00:31]} 83. Bh3 {[%emt 0:00:03]} Kc7 {[%emt 0:01:25]} 84. Kc5 {[%emt 0:00:08]} Kd8 {[%emt 0:00:39]} 85. Bd7 {[%emt 0:02:17]} Be5 {[%emt 0:02:12]} 86. Kb6 {[%emt 0:00:13]} Bf4 {[%emt 0:00:42]} 87. Kb7 {[%emt 0:00:38]} Be5 {[%emt 0:00:17]} 88. Be6 {[%emt 0:00:25]} Bf4 {[%emt 0:00:47]} 89. Bh3 {[%emt 0:01:13]} Be5 {[%emt 0:00:18]} 90. Bg4 {[%emt 0:00:28]} Bf4 {[%emt 0:00:32]} 91. Be6 {[%emt 0:00:41]} 1/2-1/2

[Event "IIFL Wealth 4th Mumbai GM"]
[Site "Mumbai"]
[Date "2019.01.05"]
[Round "7"]
[White "Mosadeghpour, Masoud"]
[Black "Rathnakaran, K.."]
[Result "1-0"]
[ECO "B06"]
[WhiteElo "2520"]
[BlackElo "2366"]
[Annotator "ChessBase"]
[PlyCount "81"]
[EventDate "2018.12.30"]
[EventType "swiss"]
[EventCountry "IND"]
[SourceTitle "playchess.com"]
[Source "ChessBase"]
[SourceQuality "1"]
[TimeControl "40/5400+30:1800+30"]

1. e4 {[%emt 0:00:00]} g6 {[%emt 0:00:00]} 2. d4 {[%emt 0:00:07]} d6 {[%emt 0:00:00]} 3. Nc3 {[%emt 0:00:22]} c6 {[%emt 0:00:00]} 4. Nf3 {[%emt 0:02:50]} Bg7 {[%emt 0:00:00]} 5. Be2 {[%emt 0:00:16]} Qc7 {[%emt 0:00:06]} 6. O-O {[%emt 0:00:49]} e5 {[%emt 0:00:13]} 7. Be3 {[%emt 0:00:17]} Nd7 {[%emt 0:00:18]} 8. Qd2 {[%emt 0:02:53]} Ngf6 {[%emt 0:00:07]} 9. Rad1 {[%emt 0:08:07]} O-O {[%emt 0:00:45]} 10. Bh6 {[%emt 0:03:19]} Re8 {[%emt 0:00:21]} 11. Bxg7 {[%emt 0:01:17]} Kxg7 {[%emt 0:00:07]} 12. a3 {[%emt 0:09:06]} Nf8 {[%emt 0:02:47]} 13. h3 {[%emt 0:05:26]} Nh5 {[%emt 0:02:32]} 14. Rfe1 {[%emt 0:06:03]} Nf4 {[%emt 0:05:51]} 15. Bf1 {[%emt 0:00:48]} f6 {[%emt 0:00:05]} 16. Kh2 {[%emt 0:04:22]} g5 {[%emt 0:01:05]} 17. g3 {[%emt 0:01:26]} N4g6 {[%emt 0:01:48]} 18. Be2 {[%emt 0:10:31]} Kh8 {[%emt 0:01:07]} 19. b4 {[%emt 0:02:36]} Qg7 {[%emt 0:00:12]} 20. d5 {[%emt 0:03:25]} Bxh3 {[%emt 0:06:28]} 21. Kxh3 {[%emt 0:02:32]} g4+ {[%emt 0:01:08]} 22. Kh2 {[%emt 0:00:42]} gxf3 {[%emt 0:00:08]} 23. Bxf3 {[%emt 0:00:01]} Rac8 {[%emt 0:00:19]} 24. Bg4 {[%emt 0:09:45]} cxd5 {[%emt 0:00:52]} 25. Bxc8 {[%emt 0:02:22]} Rxc8 {[%emt 0:00:11]} 26. Nxd5 {[%emt 0:00:40]} Ne6 {[%emt 0:00:06]} 27. Qe3 {[%emt 0:05:43]} Rxc2 {[%emt 0:03:42]} 28. Rc1 {[%emt 0:00:38]} Nd4 {[%emt 0:00:13]} 29. Rf1 {[%emt 0:11:47]} Re2 {[%emt 0:10:41]} 30. Rc8+ {[%emt 0:00:03]} Nf8 {[%emt 0:00:07]} 31. Qd3 {[%emt 0:01:24]} Qf7 {[%emt 0:02:40]} 32. Kg2 {[%emt 0:03:31]} f5 {[%emt 0:00:53]} 33. Ne3 {[%emt 0:01:24]} d5 {[%emt 0:06:09]} 34. exf5 {[%emt 0:00:32]} Kg7 {[%emt 0:01:31]} 35. Rfc1 {[%emt 0:01:05]} Qh5 {[%emt 0:13:51]} 36. f6+ {[%emt 0:00:01]} Kg8 {[%emt 0:14:36]} 37. Nf1 {[%emt 0:00:02]} Qf7 {[%emt 0:11:57]} 38. R1c7 {[%emt 0:00:37]} Rxf2+ 39. Kxf2 {[%emt 0:00:25]} Qxf6+ {[%emt 0:00:10]} 40. Kg2 {[%emt 0:00:00]} e4 {[%emt 0:00:00]} 41. Qd1 {[%emt 0:00:48]} 1-0

[Event "IIFL Wealth 4th Mumbai GM"]
[Site "Mumbai"]
[Date "2019.01.05"]
[Round "7"]
[White "Visakh N R"]
[Black "Tran, Tuan Minh"]
[Result "0-1"]
[ECO "A05"]
[WhiteElo "2491"]
[BlackElo "2524"]
[Annotator "ChessBase"]
[PlyCount "48"]
[EventDate "2018.12.30"]
[EventType "swiss"]
[EventCountry "IND"]
[SourceTitle "playchess.com"]
[Source "ChessBase"]
[SourceQuality "1"]
[TimeControl "40/5400+30:1800+30"]

1. Nf3 {[%emt 0:00:00]} Nf6 {[%emt 0:00:55]} 2. c4 {[%emt 0:00:00]} b6 {[%emt 0:00:08]} 3. g3 {[%emt 0:00:19]} Bb7 {[%emt 0:02:39]} 4. Bg2 {[%emt 0:00:06]} e6 {[%emt 0:00:46]} 5. O-O {[%emt 0:00:17]} Be7 {[%emt 0:00:04]} 6. d4 {[%emt 0:00:06]} O-O {[%emt 0:00:08]} 7. Re1 {[%emt 0:00:03]} Qc8 {[%emt 0:15:04]} 8. Bg5 {[%emt 0:01:19]} Re8 {[%emt 0:01:36]} 9. Bxf6 {[%emt 0:01:08]} Bxf6 {[%emt 0:00:08]} 10. e4 {[%emt 0:00:03]} d6 {[%emt 0:00:17]} 11. e5 {[%emt 0:04:20]} dxe5 {[%emt 0:02:11]} 12. dxe5 {[%emt 0:01:04]} Be7 {[%emt 0:00:07]} 13. Nc3 {[%emt 0:00:07]} Nd7 {[%emt 0:04:46]} 14. Nd4 {[%emt 0:10:57]} Rd8 {[%emt 0:09:05]} 15. Bxb7 {[%emt 0:09:18]} Qxb7 {[%emt 0:00:18]} 16. Qg4 {[%emt 0:13:03]} Bb4 {[%emt 0:06:39]} 17. Rac1 {[%emt 0:01:37]} Nc5 {[%emt 0:00:41]} 18. Red1 {[%emt 0:00:50]} Bxc3 {[%emt 0:00:52]} 19. Rxc3 {[%emt 0:00:24]} Rd7 {[%emt 0:00:13]} 20. b4 {[%emt 0:20:23]} Qe4 {[%emt 0:05:44]} 21. Qxe4 {[%emt 0:01:25]} Nxe4 {[%emt 0:00:09]} 22. Re3 {[%emt 0:11:33]} f5 {[%emt 0:00:38]} 23. exf6 {[%emt 0:00:33]} Nxf6 {[%emt 0:00:38]} 24. Rxe6 {[%emt 0:03:18]} c5 {[%emt 0:01:20]} 0-1

[Event "IIFL Wealth 4th Mumbai GM"]
[Site "Mumbai"]
[Date "2019.01.05"]
[Round "7"]
[White "Gukesh D"]
[Black "Aleksandrov, Aleksej"]
[Result "1-0"]
[ECO "C50"]
[WhiteElo "2466"]
[BlackElo "2590"]
[Annotator "ChessBase"]
[PlyCount "63"]
[EventDate "2018.12.30"]
[EventType "swiss"]
[EventCountry "IND"]
[SourceTitle "playchess.com"]
[Source "ChessBase"]
[SourceQuality "1"]
[TimeControl "40/5400+30:1800+30"]

1. e4 {[%emt 0:00:00]} e5 {[%emt 0:00:00]} 2. Nf3 {[%emt 0:00:00]} Nc6 {[%emt 0:00:00]} 3. Bc4 {[%emt 0:00:09]} Bc5 {[%emt 0:00:00]} 4. O-O {[%emt 0:00:10]} Nf6 {[%emt 0:00:00]} 5. d4 {[%emt 0:00:40]} Bxd4 {[%emt 0:00:11]} 6. Nxd4 {[%emt 0:00:06]} Nxd4 {[%emt 0:00:02]} 7. f4 {[%emt 0:00:34]} d6 {[%emt 0:00:05]} 8. fxe5 {[%emt 0:00:04]} dxe5 {[%emt 0:00:03]} 9. Bg5 {[%emt 0:00:49]} Qe7 {[%emt 0:00:12]} 10. c3 {[%emt 0:01:37]} Be6 {[%emt 0:00:33]} 11. Na3 {[%emt 0:01:12]} Bxc4 {[%emt 0:00:06]} 12. Bxf6 {[%emt 0:00:29]} gxf6 {[%emt 0:00:05]} 13. Nxc4 {[%emt 0:00:06]} Ne6 {[%emt 0:00:09]} 14. Ne3 {[%emt 0:10:28]} Qc5 {[%emt 0:03:16]} 15. Qd2 {[%emt 0:01:02]} Ng5 {[%emt 0:02:02]} 16. Rad1 {[%emt 0:14:13]} Nxe4 {[%emt 0:00:06]} 17. Qd7+ {[%emt 0:04:36]} Kf8 {[%emt 0:01:57]} 18. Qd3 {[%emt 0:00:19]} Ng5 {[%emt 0:22:30]} 19. b4 {[%emt 0:19:15]} e4 {[%emt 0:37:31]} 20. Qe2 {[%emt 0:06:54]} Qb6 {[%emt 0:13:52]} 21. Kh1 {[%emt 0:05:11]} Qe6 {[%emt 0:08:11]} 22. h4 {[%emt 0:07:21]} h6 {[%emt 0:00:09]} 23. hxg5 {[%emt 0:10:30]} hxg5+ {[%emt 0:00:04]} 24. Kg1 {[%emt 0:00:07]} Kg7 {[%emt 0:00:10]} 25. Qc4 {[%emt 0:02:15]} Kg6 {[%emt 0:04:40]} 26. Rd5 {[%emt 0:05:02]} Rh6 {[%emt 0:02:19]} 27. Rdf5 {[%emt 0:01:08]} Kg7 {[%emt 0:00:15]} 28. Qd4 {[%emt 0:00:43]} Rah8 {[%emt 0:03:47]} 29. Rxg5+ {[%emt 0:00:58]} Rg6 {[%emt 0:00:37]} 30. Nf5+ {[%emt 0:00:41]} Kf8 {[%emt 0:00:01]} 31. Rxg6 {[%emt 0:00:26]} fxg6 {[%emt 0:00:00]} 32. Qd8+ 1-0

[Event "IIFL Wealth 4th Mumbai GM"]
[Site "Mumbai"]
[Date "2019.01.05"]
[Round "7"]
[White "Khusenkhojaev, Muhammad"]
[Black "Bhambure, Shantanu"]
[Result "1-0"]
[ECO "E04"]
[WhiteElo "2455"]
[BlackElo "2223"]
[Annotator "RC"]
[PlyCount "87"]
[EventDate "2018.12.30"]
[EventType "swiss"]
[EventCountry "IND"]
[SourceTitle "playchess.com"]
[Source "ChessBase"]
[SourceQuality "1"]
[TimeControl "40/5400+30:1800+30"]

1. d4 {[%emt 0:00:00]} Nf6 {[%emt 0:00:00]} 2. c4 {[%emt 0:00:00]} e6 {[%emt 0:00:00]} 3. g3 {[%emt 0:00:00]} d5 {[%emt 0:00:20]} 4. Nf3 {[%emt 0:00:10]} dxc4 {[%emt 0:00:54]} 5. Bg2 {[%emt 0:00:15]} a6 {[%emt 0:00:16]} 6. O-O {[%emt 0:00:28]} Nc6 {[%emt 0:00:20]} 7. e3 {[%emt 0:00:15]} Bd7 {[%emt 0:00:46]} 8. Qe2 {[%emt 0:00:15]} Bd6 {[%emt 0:00:35]} 9. Qxc4 {[%emt 0:01:04]} O-O {[%emt 0:00:36]} 10. Rd1 {[%emt 0:02:38]} Rb8 {[%emt 0:01:32]} 11. Qc2 {[%emt 0:02:25]} Qe7 {[%emt 0:06:13]} 12. Nbd2 {[%emt 0:01:21]} Nb4 {[%emt 0:02:14]} 13. Qb1 {[%emt 0:17:28]} Bb5 {[%emt 0:05:10]} 14. Nf1 {[%emt 0:00:43]} Bc6 {[%emt 0:06:43]} 15. N1d2 {[%emt 0:00:19]} Bb5 {[%emt 0:04:00]} 16. Bf1 {[%emt 0:02:16]} Bxf1 {[%emt 0:01:23]} 17. Rxf1 {[%emt 0:01:58]} c5 {[%emt 0:08:13]} 18. a3 {[%emt 0:01:47]} Nc6 {[%emt 0:00:52]} 19. dxc5 {[%emt 0:00:30]} Bxc5 {[%emt 0:00:09]} 20. b4 {[%emt 0:00:09]} Ba7 {[%emt 0:01:41]} 21. Bb2 {[%emt 0:00:14]} Rfd8 {[%emt 0:02:25]} 22. Ne4 {[%emt 0:03:36]} Nxe4 {[%emt 0:06:05]} 23. Qxe4 {[%emt 0:00:05]} Rd5 {[%emt 0:01:07]} 24. Rad1 {[%emt 0:03:36]} Rbd8 {[%emt 0:00:45]} 25. Rxd5 {[%emt 0:00:07]} Rxd5 {[%emt 0:00:13]} 26. h4 {[%emt 0:00:54]} f6 {[%emt 0:03:24]} 27. Rc1 {[%emt 0:00:42]} Qd7 {[%emt 0:03:04]} 28. Kg2 {[%emt 0:00:12]} a5 {[%emt 0:05:22]} 29. Qc4 {[%emt 0:06:28]} axb4 {[%emt 0:01:41]} 30. axb4 {[%emt 0:00:16]} Bb6 {[%emt 0:07:42]} 31. Ra1 {[%emt 0:04:29]} Qe7 {[%emt 0:07:51]} 32. Bc3 {[%emt 0:07:35]} Rd8 {[%emt 0:06:18]} 33. b5 {[%emt 0:05:00]} Nb8 {[%emt 0:00:57]} 34. Ra8 {[%emt 0:03:15]} Nc6 {[%emt 0:05:40]} 35. Ra2 {[%emt 0:02:11]} Nb8 {[%emt 0:00:53]} 36. Nd4 {[%emt 0:05:11]} Bxd4 {[%emt 0:01:32]} 37. Bxd4 {[%emt 0:00:07]} b6 {[%emt 0:03:49]} 38. Kh2 {[%emt 0:03:13]} Qd6 {[%emt 0:01:48]} 39. Ra7 {[%emt 0:08:12]} Nd7 {[%emt 0:03:06]} 40. Qc6 {[%emt 0:00:00]} Qxc6 {[%emt 0:00:00]} 41. bxc6 {[%emt 0:00:22]} Nc5 {[%emt 0:02:07]} 42. Bxc5 {[%emt 0:00:19]} bxc5 {[%emt 0:00:02]} 43. Rd7 {[%emt 0:00:18]} Re8 {[%emt 0:01:11]} 44. c7 {[%emt 0:00:20]} 1-0

[Event "IIFL Wealth 4th Mumbai GM"]
[Site "Mumbai"]
[Date "2019.01.05"]
[Round "7"]
[White "Shyaamnikhil P"]
[Black "Pranesh M"]
[Result "1/2-1/2"]
[ECO "A05"]
[WhiteElo "2448"]
[BlackElo "2125"]
[Annotator "NA"]
[PlyCount "84"]
[EventDate "2018.12.30"]
[EventType "swiss"]
[EventCountry "IND"]
[SourceTitle "playchess.com"]
[Source "ChessBase"]
[SourceQuality "1"]
[TimeControl "40/5400+30:1800+30"]

1. Nf3 {[%emt 0:00:44]} Nf6 {[%emt 0:00:00]} 2. b3 {[%emt 0:00:11]} g6 {[%emt 0:00:00]} 3. Bb2 {[%emt 0:00:07]} Bg7 {[%emt 0:00:00]} 4. g3 {[%emt 0:00:11]} c5 {[%emt 0:00:02]} 5. Bg2 {[%emt 0:00:09]} Nc6 {[%emt 0:00:20]} 6. O-O {[%emt 0:01:36]} d6 {[%emt 0:00:20]} 7. d4 {[%emt 0:02:01]} cxd4 {[%emt 0:00:19]} 8. Nxd4 {[%emt 0:00:18]} Bd7 {[%emt 0:00:03]} 9. c4 {[%emt 0:00:33]} O-O {[%emt 0:00:17]} 10. Nc3 {[%emt 0:01:56]} Nxd4 {[%emt 0:00:35]} 11. Qxd4 {[%emt 0:00:13]} Bc6 {[%emt 0:00:06]} 12. Nd5 {[%emt 0:04:20]} Bxd5 {[%emt 0:02:49]} 13. Bxd5 {[%emt 0:00:15]} Qd7 {[%emt 0:01:23]} 14. Rad1 {[%emt 0:03:01]} Nh5 {[%emt 0:01:27]} 15. Qd2 {[%emt 0:00:13]} Bxb2 {[%emt 0:00:33]} 16. Qxb2 {[%emt 0:00:07]} Rac8 {[%emt 0:00:21]} 17. Rd4 {[%emt 0:05:07]} Nf6 {[%emt 0:01:04]} 18. Rfd1 {[%emt 0:03:02]} b6 {[%emt 0:01:36]} 19. Bf3 {[%emt 0:02:40]} Qe6 {[%emt 0:01:17]} 20. Qd2 {[%emt 0:01:13]} Rc5 {[%emt 0:01:15]} 21. Qh6 {[%emt 0:04:14]} Qe5 {[%emt 0:02:19]} 22. Rh4 {[%emt 0:07:32]} Rfc8 {[%emt 0:03:02]} 23. Kg2 {[%emt 0:04:06]} Qg5 {[%emt 0:07:01]} 24. Qxg5 {[%emt 0:02:09]} Rxg5 {[%emt 0:00:06]} 25. b4 {[%emt 0:03:16]} a5 {[%emt 0:05:45]} 26. a3 {[%emt 0:00:36]} axb4 {[%emt 0:02:33]} 27. axb4 {[%emt 0:02:15]} Re5 {[%emt 0:04:37]} 28. e3 {[%emt 0:03:55]} b5 {[%emt 0:01:31]} 29. cxb5 {[%emt 0:11:54]} Rxb5 {[%emt 0:00:29]} 30. Be2 {[%emt 0:00:16]} Rb6 {[%emt 0:02:10]} 31. Rhd4 {[%emt 0:06:09]} e6 {[%emt 0:02:36]} 32. Rxd6 {[%emt 0:04:38]} Rxb4 {[%emt 0:00:22]} 33. Rd8+ {[%emt 0:00:06]} Rxd8 {[%emt 0:00:06]} 34. Rxd8+ {[%emt 0:00:06]} Kg7 {[%emt 0:00:04]} 35. Rd2 {[%emt 0:00:15]} Rb7 {[%emt 0:01:31]} 36. Bf3 {[%emt 0:00:15]} Rd7 {[%emt 0:00:06]} 37. Rb2 {[%emt 0:00:06]} Nd5 {[%emt 0:00:45]} 38. h4 {[%emt 0:00:14]} h5 {[%emt 0:00:12]} 39. Be4 {[%emt 0:00:12]} Nf6 {[%emt 0:00:16]} 40. Bf3 {[%emt 0:00:00]} Nd5 {[%emt 0:00:00]} 41. Be4 {[%emt 0:00:09]} Nf6 {[%emt 0:00:09]} 42. Bf3 {[%emt 0:00:04]} Nd5 {[%emt 0:00:03]} 1/2-1/2

[Event "IIFL Wealth 4th Mumbai GM"]
[Site "Mumbai"]
[Date "2019.01.05"]
[Round "7"]
[White "Manik, Mikulas"]
[Black "Divya Deshmukh"]
[Result "1-0"]
[ECO "B84"]
[WhiteElo "2410"]
[BlackElo "2190"]
[Annotator "NA RC"]
[PlyCount "62"]
[EventDate "2018.12.30"]
[EventType "swiss"]
[EventCountry "IND"]
[SourceTitle "playchess.com"]
[Source "ChessBase"]
[SourceQuality "1"]
[TimeControl "40/5400+30:1800+30"]

1. e4 c5 2. Nf3 d6 3. d4 cxd4 4. Nxd4 Nf6 5. Nc3 a6 6. Be2 e6 7. Be3 Be7 8. f4 Qc7 9. O-O O-O 10. Bf3 Nc6 11. Kh1 {[%emt 0:08:08]} Na5 12. Qe1 Nc4 13. Bc1 e5 14. fxe5 Nxe5 15. Bg5 Qc5 16. Nf5 Bxf5 17. exf5 Rfe8 18. Bxb7 Rab8 19. Bxa6 Qa5 20. Be2 Rxb2 21. Rc1 Rc8 22. Bd2 Qa8 23. Qg3 Kh8 24. a4 Rc5 25. Bb5 Qc8 26. Qe1 Bd8 27. Ne4 Nxe4 28. Qxe4 Rbxc2 29. Rcd1 Rb2 30. Bc1 Rbxb5 31. axb5 Bb6 1-0

[Event "IIFL Wealth 4th Mumbai GM"]
[Site "Mumbai"]
[Date "2019.01.05"]
[Round "7"]
[White "Mohammad Fahad, Rahman"]
[Black "Gajek, Radoslaw"]
[Result "0-1"]
[ECO "C11"]
[WhiteElo "2381"]
[BlackElo "2475"]
[Annotator "ChessBase"]
[PlyCount "50"]
[EventDate "2018.12.30"]
[EventType "swiss"]
[EventCountry "IND"]
[SourceTitle "playchess.com"]
[Source "ChessBase"]
[SourceQuality "1"]
[TimeControl "40/5400+30:1800+30"]

1. e4 {[%emt 0:00:00]} e6 {[%emt 0:00:00]} 2. d4 {[%emt 0:00:00]} d5 {[%emt 0:00:00]} 3. Nc3 {[%emt 0:00:29]} Nf6 {[%emt 0:00:00]} 4. Bg5 {[%emt 0:00:06]} dxe4 {[%emt 0:00:00]} 5. Nxe4 {[%emt 0:00:08]} Be7 {[%emt 0:00:00]} 6. Bxf6 {[%emt 0:02:54]} gxf6 {[%emt 0:01:51]} 7. Nf3 {[%emt 0:01:59]} f5 {[%emt 0:00:06]} 8. Nc3 {[%emt 0:01:29]} a6 {[%emt 0:00:06]} 9. a4 {[%emt 0:01:40]} Qd6 {[%emt 0:07:18]} 10. Bc4 {[%emt 0:12:03]} c5 {[%emt 0:35:31]} 11. dxc5 {[%emt 0:05:15]} Qxc5 {[%emt 0:02:26]} 12. Qe2 {[%emt 0:00:27]} Nc6 {[%emt 0:00:27]} 13. Rd1 {[%emt 0:04:46]} Bd7 {[%emt 0:01:31]} 14. O-O {[%emt 0:03:18]} Rd8 {[%emt 0:08:26]} 15. Rfe1 {[%emt 0:03:10]} O-O {[%emt 0:01:02]} 16. Bb3 {[%emt 0:21:47]} Bf6 {[%emt 0:02:04]} 17. Qe3 {[%emt 0:07:45]} Qxe3 {[%emt 0:01:19]} 18. Rxe3 {[%emt 0:00:21]} Nb4 {[%emt 0:01:29]} 19. Ne5 {[%emt 0:03:25]} Bc8 {[%emt 0:01:10]} 20. Kf1 {[%emt 0:02:55]} Rxd1+ {[%emt 0:01:04]} 21. Nxd1 {[%emt 0:00:01]} Rd8 {[%emt 0:00:09]} 22. Ke2 {[%emt 0:07:38]} b6 {[%emt 0:07:09]} 23. c3 {[%emt 0:03:04]} Bxe5 {[%emt 0:02:23]} 24. Rxe5 {[%emt 0:00:59]} Nd3 {[%emt 0:00:08]} 25. Re3 {[%emt 0:00:23]} Nc1+ {[%emt 0:00:05]} 0-1